bitfinex/quotes_SOLUSD_20260105
["timestamp","ask_amount","ask_price","bid_price","bid_amount"]
[1767587777470,2.11973755,135.22,135.18,0.70033567]
[1767587777677,2.83185357,135.22,135.18,0.70033567]
[1767587778292,7.39521763,135.23,135.15,8.09933511]
[1767587778293,0.71211602,135.19,135.15,8.09933511]
[1767587778774,2.83185357,135.19,135.15,8.09933511]
[1767587778954,0.71211602,135.21,135.16,0.70033567]
[1767587779163,2.11973755,135.2,135.16,0.70033567]
[1767587779952,0.71211602,135.21,135.17,0.70033567]
[1767587780260,2.83185357,135.21,135.17,0.70033567]
[1767587780461,0.71211602,135.21,135.17,0.70033567]
[1767587780665,2.83185357,135.21,135.17,0.70033567]
[1767587781462,2.83185357,135.19,135.15,0.70033567]
[1767587781860,0.71211602,135.19,135.16,0.70033567]
[1767587782868,2.83185357,135.2,135.16,0.70033567]
[1767587783064,2.11973755,135.19,135.16,0.70033567]
[1767587783269,2.83185357,135.19,135.14,23.69962155]
[1767587783477,2.83185357,135.19,135.15,0.70033567]
[1767587784082,0.71211602,135.19,135.16,0.70033567]
[1767587784281,2.83185357,135.2,135.16,0.70033567]
[1767587784484,4.02033888,135.2,135.16,0.70033567]
[1767587784683,0.71211602,135.2,135.16,0.70033567]
[1767587784876,7.39600489,135.21,135.17,0.70033567]
[1767587784877,3.30822286,135.21,135.17,0.70033567]
[1767587785082,8.10765157,135.22,135.18,0.70033567]
[1767587785083,0.71211602,135.22,135.18,0.70033567]
[1767587785270,0.71211602,135.23,135.18,0.70033567]
[1767587785474,4.02033888,135.23,135.19,0.70033567]
[1767587786182,11.4147796,135.24,135.19,0.70033567]
[1767587786379,3.30822286,135.25,135.2,0.70033567]
[1767587786767,4.02033888,135.25,135.2,0.70033567]
[1767587787780,0.71211602,135.23,135.18,4.00855853]
[1767587787985,0.71211602,135.22,135.18,14.18033567]
[1767587788769,0.71211602,135.22,135.18,21.57770404]
[1767587789488,3.30822286,135.23,135.19,0.70033567]
[1767587789896,4.02033888,135.23,135.19,0.70033567]
[1767587790067,0.71211602,135.23,135.19,0.70033567]
[1767587791481,4.02033888,135.23,135.19,0.70033567]
[1767587791685,11.41515987,135.23,135.19,0.70033567]
[1767587791990,8.10693701,135.23,135.19,0.70033567]
[1767587792289,4.02033888,135.23,135.19,0.70033567]
[1767587792674,0.70305521,135.25,135.2,0.70795744]
[1767587792874,4.01127807,135.24,135.2,0.70795744]
[1767587793081,7.39372282,135.25,135.18,31.97311349]
[1767587793082,3.30822286,135.22,135.18,14.18795744]
[1767587793397,3.30822286,135.22,135.19,0.70795744]
[1767587793696,4.01127807,135.23,135.19,0.70795744]
[1767587794071,0.70305521,135.23,135.19,0.70795744]
[1767587794479,4.01127807,135.23,135.19,0.70795744]
[1767587795785,11.40610051,135.23,135.19,0.70795744]
[1767587795981,4.00832781,135.22,135.17,11.40536003]
[1767587796186,4.00832781,135.22,135.18,0.6992157]
[1767587796692,0.70010495,135.22,135.18,0.6992157]
[1767587796890,0.70010495,135.18,135.14,0.6992157]
[1767587797201,3.30822286,135.18,135.14,0.6992157]
[1767587797374,0.70010495,135.2,135.16,0.6992157]
[1767587797576,4.00832781,135.2,135.16,0.6992157]
[1767587798696,0.70010495,135.2,135.16,0.6992157]
[1767587798873,4.00832781,135.2,135.16,0.6992157]
[1767587799886,8.0956413,135.22,135.17,0.6992157]
[1767587800088,11.40386416,135.22,135.17,0.6992157]
[1767587800614,13.48,135.23,135.19,4.00743856]
[1767587800830,0.70010495,135.24,135.2,0.6992157]
[1767587801709,0.70010495,135.24,135.2,4.00743856]
[1767587801896,0.70010495,135.25,135.21,4.00743856]
[1767587802215,0.70010495,135.25,135.21,0.6992157]
[1767587802502,4.00832781,135.25,135.21,0.6992157]
[1767587802699,0.70010495,135.25,135.21,0.6992157]
[1767587802893,0.70010495,135.24,135.2,11.4036732]
[1767587803283,0.70010495,135.24,135.2,4.00743856]
[1767587803483,0.70010495,135.23,135.19,8.09603295]
[1767587803781,0.70010495,135.23,135.19,11.40425581]
[1767587804386,0.70010495,135.22,135.16,0.6992157]
[1767587804606,0.70010495,135.2,135.16,0.6992157]
[1767587805379,0.70010495,135.2,135.1,4.05188896]
[1767587805584,4.00832781,135.2,135.15,3.30822286]
[1767587806192,0.70010495,135.2,135.15,3.30822286]
[1767587806393,0.70010495,135.19,135.15,3.30822286]
[1767587806597,0.70010495,135.18,135.13,3.30822286]
[1767587807096,4.00832781,135.18,135.13,3.30822286]
[1767587807293,0.70010495,135.18,135.13,3.30822286]
[1767587807498,18.24120099,135.21,135.16,8.09766767]
[1767587808211,18.24120099,135.21,135.16,11.40589053]
[1767587808704,0.70010495,135.2,135.16,11.40589053]
[1767587808897,4.00832781,135.2,135.16,8.09766767]
[1767587809107,4.00832781,135.2,135.16,0.6992157]
[1767587811013,0.70010495,135.2,135.16,0.6992157]
[1767587811202,4.00832781,135.2,135.16,0.6992157]
[1767587811392,4.00832781,135.2,135.15,11.40642437]
[1767587811998,4.00832781,135.2,135.16,8.09780912]
[1767587812195,0.70010495,135.2,135.16,8.09780912]
[1767587812399,4.00832781,135.2,135.16,0.6992157]
[1767587813613,0.70010495,135.2,135.16,0.6992157]
[1767587813817,4.00832781,135.2,135.15,10.70722692]
[1767587814001,11.40478167,135.2,135.15,11.40644262]
[1767587815109,4.00832781,135.2,135.15,11.40644262]
[1767587816112,0.70010495,135.2,135.15,11.40644262]
[1767587816304,4.00832781,135.2,135.15,11.40644262]
[1767587816906,11.40497376,135.2,135.15,4.00743856]
[1767587817629,8.0967509,135.2,135.15,4.00743856]
[1767587817795,11.40497376,135.2,135.15,11.4066211]
[1767587818116,0.70010495,135.19,135.15,11.4066211]
[1767587819917,0.70010495,135.19,135.16,0.6992157]
[1767587820095,0.70010495,135.19,135.15,10.7074054]
[1767587821819,0.68130245,135.2,135.18,3.30822286]
[1767587822023,1.43417563,135.22,135.17,0.66912943]
[1767587822196,1.43417563,135.22,135.18,3.30822286]
[1767587822401,0.68130245,135.21,135.18,3.30822286]
[1767587822608,0.68130245,135.21,135.16,0.66912943]
[1767587822914,0.68130245,135.21,135.17,3.30822286]
[1767587823341,0.68130245,135.21,135.19,3.30822286]
[1767587824016,0.68130245,135.21,135.19,10.70508473]
[1767587824324,102.43019006,135.23,135.2,0.66912943]
[1767587824507,103.86436569,135.23,135.19,10.70508473]
[1767587824712,103.86436569,135.23,135.19,11.37421416]
[1767587826928,14.16130245,135.24,135.2,3.97735229]
[1767587828010,14.16130245,135.24,135.2,0.66912943]
[1767587828216,14.16130245,135.24,135.21,0.66912943]
[1767587828417,1.43417563,135.26,135.22,3.97735229]
[1767587828725,0.68130245,135.26,135.22,3.97735229]
[1767587828924,0.68130245,135.26,135.22,11.37218452]
[1767587829124,0.68130245,135.28,135.24,0.60912949]
[1767587829302,0.68130245,135.28,135.24,3.82916986]
[1767587829506,0.68130245,135.28,135.24,3.79735246]
[1767587829708,0.68130245,135.28,135.24,3.73735247]
[1767587829925,0.68130245,135.28,135.24,2.73735261]
[1767587830123,0.68130245,135.28,135.23,3.30822286]
[1767587831023,0.68130245,135.28,135.24,7.39426205]
[1767587831619,0.68130245,135.28,135.24,10.70248491]
[1767587832121,0.68130245,135.28,135.24,10.80282723]
[1767587832327,0.68130245,135.28,135.24,3.40856518]
[1767587832525,3.98952531,135.26,135.2,0.10034232]
[1767587832724,0.68130245,135.25,135.21,13.48]
[1767587833029,0.68130245,135.25,135.21,20.87588909]
[1767587833230,0.68130245,135.25,135.21,24.18411195]
[1767587834633,0.68130245,135.23,135.21,13.48]
[1767587834832,0.68130245,135.23,135.2,10.70466777]
[1767587835022,0.68130245,135.23,135.2,3.30822286]
[1767587835223,0.68130245,135.23,135.19,24.28541426]
[1767587835422,0.68130245,135.23,135.2,3.30822286]
[1767587836138,0.68130245,135.23,135.19,20.9771914]
[1767587836436,0.68130245,135.23,135.2,3.30822286]
[1767587837929,0.68130245,135.23,135.19,13.48]
[1767587838131,0.68130245,135.21,135.17,10.70590811]
[1767587838346,0.68130245,135.21,135.18,3.30822286]
[1767587839341,0.68130245,135.22,135.18,10.80603378]
[1767587839645,3.30822286,135.23,135.17,13.48]
[1767587839646,0.68130245,135.23,135.19,10.80515465]
[1767587840632,0.68130245,135.23,135.19,7.49693179]
[1767587840834,0.68130245,135.23,135.19,10.70481233]
[1767587841328,0.68130245,135.22,135.18,10.70555422]
[1767587841825,0.68130245,135.22,135.18,3.30822286]
[1767587843541,0.68130245,135.22,135.17,20.97830752]
[1767587843744,0.68130245,135.22,135.18,3.30822286]
[1767587844347,0.68130245,135.22,135.18,10.70565838]
[1767587844641,0.68130245,135.22,135.18,9.51369511]
[1767587845129,0.68130245,135.23,135.2,2.11625959]
[1767587845327,0.68130245,135.24,135.2,2.11625959]
[1767587845523,0.68130245,135.24,135.2,0.10034232]
[1767587845722,0.68130245,135.25,135.22,2.11625959]
[1767587846118,0.75287318,135.26,135.22,2.21660191]
[1767587846347,1.43417563,135.27,135.22,2.21660191]
[1767587846531,0.68130245,135.26,135.22,9.61175997]
[1767587847227,1.43417563,135.27,135.23,0.10034232]
[1767587847447,1.43417563,135.28,135.23,2.21660191]
[1767587847737,0.68130245,135.27,135.23,0.10034232]
[1767587847943,0.68130245,135.27,135.24,2.11625959]
[1767587848917,0.68130245,135.27,135.23,2.21660191]
[1767587849122,0.68130245,135.27,135.23,2.11625959]
[1767587850134,0.68130245,135.27,135.23,7.39480848]
[1767587850437,0.68130245,135.27,135.23,9.51106807]
[1767587850830,0.68130245,135.27,135.23,2.11625959]
[1767587851343,0.68130245,135.27,135.23,9.511059]
[1767587851724,0.68130245,135.27,135.24,2.11625959]
[1767587852126,0.6815065,135.28,135.25,2.11625959]
[1767587852446,0.6815065,135.28,135.25,9.50996658]
[1767587853130,0.6815065,135.29,135.26,2.11625959]
[1767587853324,0.6815065,135.29,135.25,7.49404931]
[1767587853957,0.6815065,135.29,135.26,2.11625959]
[1767587854830,0.2,135.3,135.27,2.21660191]
[1767587855130,0.2,135.3,135.28,2.11625959]
[1767587856534,0.70108042,135.29,135.24,18.5857134]
[1767587856849,0.70108042,135.29,135.25,2.11625959]
[1767587857029,0.70108042,135.28,135.24,23.09035975]
[1767587857221,0.70108042,135.28,135.23,22.99089754]
[1767587857426,0.70108042,135.28,135.23,20.87463795]
[1767587857750,0.70108042,135.26,135.22,20.87523422]
[1767587857929,0.70108042,135.26,135.22,23.09183613]
[1767587858131,0.70108042,135.26,135.22,9.61183613]
[1767587858330,0.70108042,135.26,135.22,23.09183613]
[1767587858546,0.70108042,135.26,135.23,2.11625959]
[1767587859148,0.70108042,135.27,135.23,2.11625959]
[1767587859354,0.70108042,135.27,135.23,2.21660191]
[1767587859529,0.70108042,135.27,135.23,9.61140105]
[1767587860450,2.81734001,135.27,135.23,7.49514146]
[1767587860647,0.70108042,135.27,135.23,7.49514146]
[1767587861252,0.70108042,135.27,135.23,7.39479914]
[1767587862549,0.70108042,135.27,135.23,9.51105873]
[1767587862728,0.70108042,135.27,135.23,7.39479914]
[1767587863629,0.70108042,135.27,135.22,20.97551988]
[1767587863830,0.70108042,135.26,135.22,23.09177947]
[1767587864127,2.86913277,135.27,135.18,0.68055725]
[1767587864128,0.70108042,135.22,135.18,0.68055725]
[1767587864329,2.78734001,135.22,135.18,0.68055725]
[1767587864737,2.78734001,135.22,135.17,21.55830239]
[1767587864738,2.11625959,135.22,135.17,21.55830239]
[1767587864952,2.11625959,135.22,135.18,7.39754399]
[1767587866154,7.39445672,135.24,135.18,7.39754399]
[1767587866355,0.70108042,135.22,135.18,10.19436083]
[1767587867450,0.70108042,135.21,135.18,8.07810124]
[1767587867653,0.70108042,135.21,135.18,7.39754399]
[1767587867839,0.70108042,135.21,135.18,8.07810124]
[1767587868041,2.81734001,135.22,135.18,8.07810124]
[1767587868243,0.70108042,135.22,135.18,8.07810124]
[1767587869248,0.70108042,135.2,135.17,20.87799357]
[1767587869649,0.70108042,135.21,135.17,23.67481041]
[1767587869854,0.70108042,135.21,135.17,21.55855082]
[1767587870050,0.70108042,135.21,135.17,23.67481041]
[1767587873253,0.70108042,135.21,135.17,22.67481041]
[1767587874151,0.70108042,135.22,135.18,2.79681684]
[1767587874456,0.70108042,135.22,135.19,2.79681684]
[1767587874837,0.70108042,135.23,135.2,2.11625959]
[1767587875038,0.70108042,135.23,135.2,15.59625959]
[1767587875440,1.4539536,135.25,135.2,16.27681684]
[1767587875740,0.70108042,135.25,135.21,2.79681684]
[1767587876164,0.70108042,135.25,135.21,10.19256842]
[1767587879064,0.70108042,135.25,135.2,22.99249643]
[1767587879366,0.70108042,135.24,135.2,22.99249643]
[1767587880355,1.4539536,135.24,135.2,22.99249643]
[1767587881069,1.4539536,135.24,135.19,19.17289324]
[1767587881070,0.6739315,135.23,135.19,9.51320501]
[1767587881370,0.6739315,135.22,135.19,13.48]
[1767587882171,0.6739315,135.23,135.19,23.71351386]
[1767587882757,0.6739315,135.23,135.2,2.11625959]
[1767587883265,0.6739315,135.23,135.2,9.51264845]
[1767587883774,0.75287318,135.24,135.21,2.8365328]
[1767587884069,0.6739315,135.25,135.21,0.72027321]
[1767587885165,0.6739315,135.25,135.21,8.11608846]
[1767587886476,0.6739315,135.24,135.19,2.11625959]
[1767587886655,0.6739315,135.22,135.19,15.59625959]
[1767587887779,0.6739315,135.22,135.18,8.11760575]
[1767587887780,0.6739315,135.22,135.18,0.72027321]
[1767587887975,0.6739315,135.22,135.18,16.3165328]
[1767587888557,0.6739315,135.22,135.18,23.7139439]
[1767587889084,9.51107834,135.23,135.19,2.8365328]
[1767587889085,0.6739315,135.23,135.19,2.8365328]
[1767587891288,0.6739315,135.23,135.19,10.23330052]
[1767587894480,0.6739315,135.2,135.15,17.2037895]
[1767587894785,0.6739315,135.19,135.15,32.80004909]
[1767587894988,0.6739315,135.19,135.16,10.23513638]
[1767587897190,0.6739315,135.19,135.16,8.11887679]
[1767587904686,0.6739315,135.19,135.16,7.39860358]
[1767587904998,0.75287318,135.23,135.15,25.40088606]
[1767587904999,2.11625959,135.17,135.15,7.03969558]
[1767587905201,2.11625959,135.16,135.12,0.72027321]
[1767587905704,18.49112426,135.2,135.12,8.12077561]
[1767587905876,2.11625959,135.16,135.12,8.12077561]
[1767587906498,3.31000675,135.16,135.12,8.12077561]
[1767587907678,3.31000675,135.16,135.13,0.72027321]
[1767587908197,7.39773482,135.18,135.13,0.72027321]
[1767587908388,3.31000675,135.16,135.13,0.72027321]
[1767587909603,7.39773482,135.18,135.13,0.72027321]
[1767587909805,3.31000675,135.16,135.13,0.72027321]
[1767587910489,0.75287318,135.17,135.14,0.6946049]
[1767587910697,4.06287993,135.19,135.15,0.6946049]
[1767587910899,0.75287318,135.19,135.15,0.6946049]
[1767587911094,4.06287993,135.2,135.16,0.6946049]
[1767587911299,18.48885468,135.22,135.15,16.79000675]
[1767587911300,3.31000675,135.22,135.18,0.6946049]
[1767587911483,11.45788726,135.23,135.18,4.00461165]
[1767587911801,0.75287318,135.23,135.2,0.6946049]
[1767587912001,3.31000675,135.22,135.18,0.6946049]
[1767587912187,0.75287318,135.21,135.18,0.6946049]
[1767587912500,4.06287993,135.22,135.18,0.6946049]
[1767587912687,0.75287318,135.23,135.19,4.00461165]
[1767587912892,0.75287318,135.23,135.2,0.6946049]
[1767587913080,4.06287993,135.24,135.2,0.6946049]
[1767587914584,0.75287318,135.24,135.21,0.6946049]
[1767587914784,4.06287993,135.25,135.21,0.6946049]
[1767587915806,0.75287318,135.25,135.21,4.00461165]
[1767587915986,4.06287993,135.25,135.21,0.6946049]
[1767587916405,0.75287318,135.25,135.22,4.00163381]
[1767587916606,0.75287318,135.26,135.22,4.00163381]
[1767587918413,8.14643606,135.26,135.22,0.69162706]
[1767587918620,3.31000675,135.25,135.21,0.69162706]
[1767587918907,0.75287318,135.24,135.21,0.69162706]
[1767587919788,3.31000675,135.23,135.19,0.69162706]
[1767587920003,4.06287993,135.23,135.19,0.69162706]
[1767587920189,3.31000675,135.23,135.19,0.69162706]
[1767587920389,3.31000675,135.24,135.19,4.00163381]
[1767587920589,0.75287318,135.23,135.19,4.00163381]
[1767587921728,3.31000675,135.21,135.17,0.69162706]
[1767587922016,4.06287993,135.2,135.15,11.40072959]
[1767587922502,3.31000675,135.21,135.16,4.00163381]
[1767587923716,10.70606631,135.21,135.16,4.00163381]
[1767587924308,3.31000675,135.2,135.16,0.69162706]
[1767587924510,3.31000675,135.2,135.16,4.00163381]
[1767587925008,10.70606631,135.21,135.16,4.00163381]
[1767587925412,7.39605956,135.21,135.17,3.31000675]
[1767587926214,10.70606631,135.21,135.16,11.40019978]
[1767587927311,0.75287318,135.22,135.19,0.69162706]
[1767587927500,0.75287318,135.23,135.2,0.69162706]
[1767587927699,0.75287318,135.23,135.19,3.31000675]
[1767587928813,0.8538095,135.24,135.19,3.31000675]
[1767587929002,3.99379058,135.23,135.17,20.87799672]
[1767587929204,0.75287318,135.22,135.18,3.31000675]
[1767587929618,0.75287318,135.22,135.19,0.69162706]
[1767587929994,0.68378383,135.23,135.18,10.70743208]
[1767587930895,4.75255111,135.24,135.2,0.69162706]
[1767587931203,1.44254436,135.24,135.2,0.69162706]
[1767587931401,4.75255111,135.24,135.2,0.69162706]
[1767587931820,12.14688798,135.24,135.2,0.69162706]
[1767587932923,0.10676479,135.21,135.17,11.3995929]
[1767587933110,0.85963797,135.21,135.17,11.3995929]
[1767587933519,0.85963797,135.21,135.17,8.08958615]
[1767587935526,0.75287318,135.21,135.18,0.69162706]
[1767587940318,3.99379058,135.21,135.17,0.69162706]
[1767587940519,0.75287318,135.2,135.17,0.69162706]
[1767587941622,0.75287318,135.22,135.18,0.70222094]
[1767587942324,0.75287318,135.23,135.19,0.70222094]
[1767587942540,0.75287318,135.23,135.2,0.70222094]
[1767587943210,11.45775177,135.23,135.2,0.70222094]
[1767587943451,11.45775177,135.23,135.17,0.70222094]
[1767587943452,3.98989919,135.21,135.17,0.70222094]
[1767587943613,4.06287993,135.2,135.17,0.70222094]
[1767587943813,0.75287318,135.2,135.17,0.70222094]
[1767587944021,4.06287993,135.2,135.17,0.70222094]
[1767587944205,0.75287318,135.2,135.17,0.70222094]
[1767587947923,103.12504598,135.23,135.17,10.70798629]
[1767587948232,106.43505273,135.23,135.17,10.70798629]
[1767587948426,106.43505273,135.23,135.18,0.70222094]
[1767587948814,113.82995994,135.23,135.18,0.70222094]
[1767587949522,4.00486267,135.22,135.18,0.70222094]
[1767587950530,0.69485592,135.22,135.18,0.70222094]
[1767587950833,4.00486267,135.22,135.18,0.70222094]
[1767587953219,0.69485592,135.21,135.18,0.70222094]
[1767587953432,3.31000675,135.22,135.15,0.70222094]
[1767587953433,0.69485592,135.18,135.15,0.70222094]
[1767587953739,3.31000675,135.19,135.15,0.70222094]
[1767587954536,3.31000675,135.18,135.15,0.70222094]
[1767587954717,3.31000675,135.17,135.15,0.70222094]
[1767587955230,7.39712621,135.19,135.14,0.70222094]
[1767587955436,7.39712621,135.19,135.13,0.70222094]
[1767587955437,25.88961825,135.19,135.13,0.70222094]
[1767587955622,4.00486267,135.18,135.14,0.70222094]
[1767587956033,3.31000675,135.17,135.14,0.70222094]
[1767587956543,4.00486267,135.17,135.14,0.70222094]
[1767587958744,11.40298769,135.17,135.14,0.70222094]
[1767587958922,4.00486267,135.16,135.12,0.70222094]
[1767587959522,3.31000675,135.15,135.12,0.70222094]
[1767587959733,0.69485592,135.16,135.13,0.70222094]
[1767587961341,4.00486267,135.16,135.13,0.70222094]
[1767587964049,4.00486267,135.17,135.14,0.70222094]
[1767587964542,3.31000675,135.17,135.14,0.70222094]
[1767587964753,4.00486267,135.18,135.14,0.70222094]
[1767587964929,3.31000675,135.18,135.14,0.70222094]
[1767587966429,3.31000675,135.18,135.15,0.70222094]
[1767587966730,2.11782356,135.18,135.15,0.70222094]
[1767587966930,2.11782356,135.19,135.15,0.70222094]
[1767587967152,118.72286954,135.2,135.15,0.70222094]
[1767587967341,105.24286954,135.2,135.15,0.70222094]
[1767587967534,2.81267948,135.2,135.16,0.70222094]
[1767587967856,2.81267948,135.2,135.17,0.70222094]
[1767587970348,2.81267948,135.21,135.18,0.70222094]
[1767587970941,2.82220262,135.19,135.15,0.7022797]
[1767587971746,0.70437906,135.18,135.15,0.7022797]
[1767587972543,2.82220262,135.17,135.14,0.7022797]
[1767587972746,7.39762317,135.18,135.13,14.1822797]
[1767587972747,2.82220262,135.16,135.13,14.1822797]
[1767587973356,0.70437906,135.16,135.13,14.1822797]
[1767587974343,2.82220262,135.17,135.13,14.1822797]
[1767587974549,7.39652882,135.2,135.16,0.7022797]
[1767587974753,0.70437906,135.19,135.15,2.11782356]
[1767587976260,0.70437906,135.19,135.14,7.39928212]
[1767587976441,0.70660107,135.18,135.14,7.39928212]
[1767587976641,0.70660107,135.18,135.14,10.18121195]
[1767587977140,0.70660107,135.18,135.14,8.06338839]
[1767587980065,0.70660107,135.18,135.15,0.66410627]
[1767587980465,2.82442463,135.18,135.14,0.66410627]
[1767587981149,0.70660107,135.18,135.14,0.66410627]
[1767587981344,2.82442463,135.18,135.14,0.66410627]
[1767587983556,0.70660107,135.17,135.14,0.66410627]
[1767587983755,0.70660107,135.17,135.13,14.14410627]
[1767587983756,0.70660107,135.16,135.13,14.14410627]
[1767587985453,2.82442463,135.17,135.13,14.14410627]
[1767587985766,0.70660107,135.17,135.14,0.66410627]
[1767587985970,0.70660107,135.17,135.13,21.54436909]
[1767587986162,0.70660107,135.17,135.14,0.66410627]
[1767587986864,0.70660107,135.17,135.13,20.88026282]
[1767587986865,2.82442463,135.17,135.13,14.14410627]
[1767587987871,0.70660107,135.17,135.13,21.54434214]
[1767587988058,8.10395915,135.19,135.15,0.66410627]
[1767587988261,10.22178271,135.19,135.15,0.66410627]
[1767587988576,0.70660107,135.18,135.14,7.39963689]
[1767587988955,0.70660107,135.18,135.14,9.51746045]
[1767587990077,0.70660107,135.18,135.14,7.39963689]
[1767587990373,10.22121789,135.2,135.15,0.66410627]
[1767587990576,2.82442463,135.19,135.15,0.66410627]
[1767587990756,0.70660107,135.17,135.13,8.06430824]
[1767587990964,0.70660107,135.17,135.14,0.66410627]
[1767587992475,0.70660107,135.17,135.14,2.78192983]
[1767587992979,0.70660107,135.17,135.14,0.66410627]
[1767587995677,0.70660107,135.17,135.14,2.78192983]
[1767587996172,0.67660107,135.17,135.14,10.18134415]
[1767587996375,7.39729826,135.19,135.15,2.11782356]
[1767587996967,9.51430725,135.2,135.15,2.78192983]
[1767587998183,0.70660107,135.19,135.15,2.78192983]
[1767587998388,0.70660107,135.19,135.15,10.18106586]
[1767587999152,0.70660107,135.19,135.15,2.78192983]
[1767587999693,0.70660107,135.19,135.14,10.18155665]
[1767588000200,0.70660107,135.19,135.15,9.51700683]
[1767588000384,0.70660107,135.19,135.15,10.1811131]
[1767588000580,0.70660107,135.19,135.15,8.06328954]
[1767588000780,0.67263824,135.18,135.13,2.77180191]
[1767588000972,0.67263824,135.18,135.14,0.65397835]
[1767588001490,0.67263824,135.18,135.14,2.77180191]
[1767588002283,8.07020544,135.18,135.14,0.65397835]
[1767588002479,0.67263824,135.14,135.11,0.65397835]
[1767588002698,0.67263824,135.14,135.1,10.27336059]
[1767588002911,0.67263824,135.12,135.1,0.1]
[1767588003200,0.67263824,135.14,135.1,0.75397835]
[1767588003403,0.67263824,135.14,135.1,2.87180191]
[1767588003576,0.67263824,135.14,135.1,8.15585843]
[1767588003776,0.67263824,135.14,135.1,10.27368199]
[1767588005501,0.67263824,135.15,135.11,2.77180191]
[1767588005880,0.67263824,135.15,135.11,0.65397835]
[1767588006082,0.67263824,135.15,135.11,2.77180191]
[1767588006905,0.67263824,135.15,135.11,2.11782356]
[1767588007088,0.67263824,135.15,135.11,2.77180191]
[1767588007786,0.67263824,135.15,135.12,2.11782356]
[1767588011296,0.67263824,135.15,135.11,8.05531416]
[1767588011499,0.67263824,135.15,135.12,2.11782356]
[1767588013607,0.67263824,135.13,135.1,0.1]
[1767588014106,0.67263824,135.12,135.1,0.1]
[1767588014680,7.39925986,135.15,135.11,2.11782356]
[1767588014681,0.67263824,135.14,135.11,2.11782356]
[1767588015288,0.67263824,135.16,135.13,2.11782356]
[1767588016184,0.67263824,135.16,135.14,2.11782356]
[1767588016782,7.39791359,135.18,135.15,2.11782356]
[1767588016783,0.67263824,135.18,135.15,2.11782356]
[1767588017098,0.67263824,135.18,135.16,2.11782356]
[1767588017482,0.67263824,135.2,135.17,2.11782356]
[1767588017710,0.67263824,135.21,135.17,2.77180191]
[1767588018485,21.5683659,135.22,135.19,2.11782356]
[1767588018683,0.67263824,135.22,135.19,2.11782356]
[1767588020186,0.67263824,135.22,135.2,2.11782356]
[1767588020900,0.67263824,135.22,135.2,2.05782357]
[1767588021809,0.67263824,135.22,135.19,2.11782356]
[1767588022710,0.67263824,135.22,135.18,8.05144143]
[1767588022911,0.67263824,135.21,135.15,0.65397835]
[1767588023090,0.67263824,135.21,135.16,21.53261388]
[1767588023414,0.67263824,135.21,135.18,2.77180191]
[1767588023620,0.67263824,135.21,135.16,21.5325734]
[1767588023786,0.67263824,135.21,135.17,0.65397835]
[1767588023987,0.67263824,135.21,135.18,2.11782356]
[1767588024705,0.67263824,135.21,135.18,2.77180191]
[1767588024912,0.67263824,135.21,135.17,2.11782356]
[1767588025905,0.67263824,135.21,135.17,2.77180191]
[1767588026095,0.67263824,135.21,135.19,2.11782356]
[1767588026297,0.67263824,135.21,135.19,2.05782362]
[1767588026612,0.67263824,135.21,135.2,3.30666939]
[1767588026999,7.39495124,135.23,135.2,3.30666939]
[1767588027806,7.39495124,135.23,135.18,0.65397835]
[1767588028002,25.88073947,135.24,135.22,3.30666939]
[1767588028199,25.88073947,135.24,135.18,0.65397835]
[1767588028595,25.88073947,135.24,135.22,3.30666939]
[1767588028796,25.88073947,135.24,135.22,3.27873624]
[1767588029111,0.67263824,135.23,135.2,3.30666939]
[1767588030012,0.67263824,135.23,135.21,3.30666939]
[1767588031309,0.71035102,135.24,135.21,3.30666939]
[1767588031528,0.71035102,135.23,135.17,0.72302824]
[1767588031836,0.71035102,135.23,135.19,3.30666939]
[1767588035004,0.71035102,135.22,135.19,3.24666944]
[1767588035219,0.71035102,135.22,135.18,0.72302824]
[1767588035419,0.71035102,135.22,135.19,3.30666939]
[1767588038814,8.10573722,135.22,135.19,3.30666939]
[1767588039407,8.10573722,135.22,135.18,0.72302824]
[1767588039626,8.10573722,135.22,135.19,3.30666939]
[1767588040019,8.10573722,135.22,135.19,3.98945428]
[1767588040220,0.71035102,135.22,135.19,3.98945428]
[1767588040524,0.71035102,135.22,135.2,3.30666939]
[1767588040927,0.67311039,135.24,135.21,3.98945428]
[1767588041099,0.67311039,135.24,135.22,3.30666939]
[1767588041826,0.67311039,135.24,135.21,3.98945428]
[1767588044232,0.67311039,135.24,135.22,3.30666939]
[1767588044536,0.67311039,135.24,135.21,3.98945428]
[1767588049531,102.43019006,135.25,135.22,3.98945428]
[1767588049712,8.06649639,135.26,135.23,3.30666939]
[1767588050609,8.06649639,135.26,135.22,3.98945428]
[1767588051241,0.67311039,135.25,135.21,0.68278489]
[1767588051440,0.67311039,135.25,135.21,3.98945428]
[1767588052617,8.06701062,135.25,135.21,3.98945428]
[1767588054236,0.67311039,135.24,135.21,3.98945428]
[1767588056324,0.67311039,135.24,135.21,3.30666939]
[1767588057824,0.66126852,135.21,135.17,3.30666939]
[1767588058020,0.66126852,135.21,135.16,8.08110032]
[1767588058225,0.66126852,135.21,135.17,3.30666939]
[1767588059544,3.96793791,135.22,135.18,0.68278489]
[1767588060249,11.36367559,135.22,135.18,0.68278489]
[1767588060928,0.099,135.21,135.16,0.69372876]
[1767588061132,29.19079636,135.22,135.15,0.69372876]